fUSD/lending_fUSD_20250226
["ID","MTS","AMOUNT","RATE_DAILY","PERIOD"]
[354522113,1740553843843,-500.0,0.00044109,120]
[354522114,1740553843852,-501.17792897,0.00044109,120]
[354522115,1740553843862,-718.46,0.00044109,120]
[354522116,1740553843871,-632.19,0.00044109,120]
[354522117,1740553843881,-2189.47,0.00044109,120]
[354522118,1740553843891,-748.18,0.00044109,120]
[354522119,1740553843901,-2392.59,0.00044109,120]
[354522120,1740553843910,-500.0,0.00044109,120]
[354522121,1740553843920,-1488.93,0.00044109,120]
[354522122,1740553843930,-500.0,0.00044109,120]
[354522123,1740553843940,-1052.33,0.00044109,120]
[354522124,1740553843949,-500.0,0.00044109,120]
[354522125,1740553843958,-1363.24,0.00044109,120]
[354522126,1740553843970,-551.9296173,0.00044109,120]
[354522127,1740553843980,-500.0,0.00044109,120]
[354522128,1740553843989,-500.0,0.00044109,120]
[354522129,1740553843999,-507.09359059,0.00044109,120]
[354522130,1740553844014,-2923.35,0.00044109,120]
[354522131,1740553844035,-506.83298318,0.00044109,120]
[354522132,1740553844045,-1723.31,0.00044109,120]
[354522133,1740553844061,-508.92659123,0.00044109,120]
[354522134,1740553844082,-500.0,0.00044109,120]
[354522135,1740553844103,-503.44317434,0.00044109,120]
[354522136,1740553844115,-502.93289715,0.00044109,120]
[354522137,1740553844125,-500.0,0.00044109,120]
[354522138,1740553844137,-2692.66,0.00044109,120]
[354522139,1740553844146,-500.0,0.00044109,120]
[354522140,1740553844155,-2036.92,0.00044109,120]
[354522141,1740553844164,-513.42112293,0.00044109,120]
[354522142,1740553844173,-500.0,0.00044109,120]
[354522143,1740553844182,-522.39,0.00044109,120]
[354522144,1740553844192,-500.0,0.00044109,120]
[354522145,1740553844200,-500.0,0.00044109,120]
[354522146,1740553844210,-659.89,0.00044109,120]
[354522147,1740553844221,-500.0,0.00044109,120]
[354522148,1740553844230,-2821.22,0.00044109,120]
[354522149,1740553844239,-488.46725919,0.00044109,120]
[354522150,1740553844247,-1347.57,0.00044109,120]
[354522151,1740553844257,-500.0,0.00044109,120]
[354522152,1740553844266,-1677.34,0.00044109,120]
[354522153,1740553844276,-500.0,0.00044109,120]
[354522154,1740553844285,-500.0,0.00044109,120]
[354522155,1740553844294,-1191.14,0.00044109,120]
[354522156,1740553844305,-868.37,0.00044109,120]
[354522157,1740553844314,-500.0,0.00044109,120]
[354522158,1740553844323,-645.17,0.00044109,120]
[354522159,1740553844331,-1897.01,0.00044109,120]
[354522160,1740553844340,-2105.0,0.00044109,120]
[354522161,1740553844350,-500.0,0.00044109,120]
[354522162,1740553844360,-2559.35,0.00044109,30]
[354522163,1740553844369,-500.0,0.00044109,120]
[354522164,1740553844378,-502.86,0.00044109,120]
[354522165,1740553844388,-1442.69,0.00044109,120]
[354522166,1740553844397,-716.04,0.00044109,120]
[354522167,1740553844406,-505.86641007,0.00044109,120]
[354522168,1740553844415,-500.0,0.00044109,120]
[354522169,1740553844424,-1977.77,0.00044109,120]
[354522170,1740553844433,-4217.58,0.00044109,120]
[354522171,1740553844443,-500.0,0.00044109,120]
[354522172,1740553844453,-686.37,0.00044109,120]
[354522173,1740553844462,-500.0,0.00044109,120]
[354522174,1740553844473,-500.0,0.00044109,120]
[354522175,1740553844482,-435.39581433,0.00044109,120]
[354522176,1740553844491,-1419.73,0.00044109,120]
[354522177,1740553844500,-1022.79,0.00044109,120]
[354522178,1740553844510,-500.0,0.00044109,120]
[354522179,1740553844519,-500.0,0.00044109,120]
[354522180,1740553844528,-1813.85,0.00044109,120]
[354522181,1740553844538,-3589.89,0.00044109,120]
[354522182,1740553844548,-3272.73,0.00044109,120]
[354522183,1740553844557,-638.82,0.00044109,120]
[354522184,1740553844567,-568.21,0.00044109,120]
[354522185,1740553844576,-2377.63,0.00044109,120]
[354522186,1740553844585,-2686.36,0.00044109,120]
[354522187,1740553844595,-1098.365009,0.00044109,120]
[354522188,1740553844604,-500.0,0.00044109,120]
[354522189,1740553844614,-500.0,0.00044109,120]
[354522190,1740553844624,-500.0,0.00044109,120]
[354522191,1740553844633,-455.43,0.00044109,120]
[354522192,1740553844643,-500.0,0.00044109,120]
[354522193,1740553844653,-1560.12,0.00044109,120]
[354522194,1740553844663,-3130.08,0.00044109,120]
[354522195,1740553844673,-507.44,0.00044109,120]
[354522196,1740553844683,-780.77,0.00044109,120]
[354522197,1740553844693,-235.84341816,0.00044109,120]
[354522198,1740553844703,-1194.14,0.00044109,120]
[354522199,1740553844716,-2929.226483,0.00044109,120]
[354522200,1740553844726,-500.0,0.00044109,120]
[354522201,1740553844736,-3727.8,0.00044109,120]
[354522202,1740553844745,-500.0,0.00044109,120]
[354522203,1740553844755,-1624.71,0.00044109,120]
[354522204,1740553844766,-660.05,0.00044109,120]
[354522205,1740553844776,-500.0,0.00044109,120]
[354522206,1740553844786,-500.0,0.00044109,120]
[354522207,1740553844796,-1305.49,0.00044109,120]
[354522208,1740553844806,-2661.11,0.00044109,120]
[354522209,1740553844815,-1313.06,0.00044109,120]
[354522210,1740553844825,-502.23156616,0.00044109,120]
[354522211,1740553844835,-500.0,0.00044109,120]
[354522212,1740553844844,-3000.3,0.00044109,120]
[354522213,1740553844854,-813.38,0.00044109,120]
[354522214,1740553844864,-3537.05,0.00044109,120]
[354522215,1740553844874,-1377.77,0.00044109,120]
[354522216,1740553844884,-499.997,0.00044109,120]
[354522217,1740553844893,-1009.02,0.00044109,120]
[354522218,1740553844903,-500.0,0.00044109,120]
[354522219,1740553844913,-500.0,0.00044109,120]
[354522220,1740553844923,-1333.65,0.00044109,120]
[354522221,1740553844932,-850.33,0.00044109,30]
[354522222,1740553844942,-500.0,0.00044109,120]
[354522223,1740553844952,-3480.61,0.00044109,120]
[354522224,1740553844962,-779.18,0.00044109,120]
[354522225,1740553844973,-960.4,0.00044109,120]
[354522226,1740553844983,-500.0,0.00044109,120]
[354522227,1740553844993,-2083.54,0.00044109,120]
[354522228,1740553845003,-500.0,0.00044109,120]
[354522229,1740553845013,-1092.05,0.00044109,120]
[354522230,1740553845023,-500.0,0.00044109,120]
[354522231,1740553845032,-3330.94,0.00044109,120]
[354522232,1740553845042,-2481.83,0.00044109,120]
[354522233,1740553845051,-496.34716756,0.00044109,120]
[354522234,1740553845061,-767.81,0.00044109,120]
[354522235,1740553845070,-812.51,0.00044109,120]
[354522236,1740553845080,-527.89,0.00044109,120]
[354522237,1740553845090,-2844.89,0.00044109,120]
[354522238,1740553845100,-507.97726936,0.00044109,120]
[354522239,1740553845110,-1453.55,0.00044109,120]
[354522240,1740553845119,-1157.2,0.00044109,120]
[354522241,1740553845129,-1835.9,0.00044109,120]
[354522242,1740553845139,-744.35,0.00044109,120]
[354522243,1740553845149,-876.76,0.00044109,120]
[354522244,1740553845158,-500.0,0.00044109,120]
[354522245,1740553845168,-708.15,0.00044109,120]
[354522246,1740553845178,-1752.71,0.00044109,120]
[354522247,1740553845188,-882.38,0.00044109,120]
[354522248,1740553845199,-500.0,0.00044109,120]
[354522249,1740553845209,-904.95,0.00044109,120]
[354522250,1740553845219,-500.0,0.00044109,7]
[354522251,1740553845229,-1242.19,0.00044109,120]
[354522252,1740553845238,-1965.64,0.00044109,120]
[354522253,1740553845248,-500.0,0.00044109,120]
[354522254,1740553845258,-1407.76,0.00044109,120]
[354522255,1740553845268,-1183.54,0.00044109,120]
[354522256,1740553845278,-506.45480225,0.00044109,120]
[354522257,1740553845288,-500.0,0.00044109,120]
[354522258,1740553845298,-500.0,0.00044109,120]
[354522259,1740553845309,-500.0,0.00044109,120]
[354522260,1740553845318,-2255.75,0.00044109,120]
[354522261,1740553845328,-1940.4,0.00044109,120]
[354522262,1740553845338,-791.07,0.00044109,120]
[354522263,1740553845348,-306.859928,0.00044109,14]
[354522264,1740553845358,-500.0,0.00044109,120]
[354522265,1740553845368,-306.859928,0.00044109,14]
[354522266,1740553845378,-502.36,0.00044109,120]
[354522267,1740553845387,-497.55672562,0.00044109,120]
[354522268,1740553845397,-306.859928,0.00044109,14]
[354522269,1740553845407,-306.859928,0.00044109,14]
[354522270,1740553845417,-649.41,0.00044109,120]
[354522271,1740553845426,-306.859928,0.00044109,14]
[354522272,1740553845436,-306.859928,0.00044109,14]
[354522273,1740553845446,-500.0,0.00044109,120]
[354522274,1740553845456,-306.859928,0.00044109,14]
[354522275,1740553845467,-306.859928,0.00044109,14]
[354522276,1740553845478,-500.0,0.00044109,120]
[354522277,1740553845488,-1537.63,0.00044109,120]
[354522278,1740553845498,-399.50490039,0.00044109,120]
[354522279,1740553845508,-694.58,0.00044109,120]
[354522280,1740553845518,-415.69888126,0.00044109,120]
[354522281,1740553845528,-521.37495496,0.00044109,120]
[354522282,1740553845538,-1715.04,0.00044109,120]
[354522283,1740553845547,-743.57,0.00044109,120]
[354522284,1740553845557,-500.0,0.00044109,120]
[354522285,1740553845566,-1634.2,0.00044109,120]
[354522286,1740553845577,-500.0,0.00044109,120]
[354522287,1740553845586,-500.0,0.00044109,120]
[354522288,1740553845596,-500.0,0.00044109,120]
[354522289,1740553845606,-1583.21,0.00044109,120]
[354522290,1740553845616,-200.0,0.00044109,7]
[354522291,1740553845626,-977.87,0.00044109,120]
[354522292,1740553845636,-1450.72,0.00044109,120]
[354522293,1740553845646,-500.0,0.00044109,120]
[354522294,1740553845656,-500.0,0.00044109,120]
[354522295,1740553845666,-554.49,0.00044109,120]
[354522296,1740553845676,-502.03697752,0.00044109,120]
[354522297,1740553845686,-500.0,0.00044109,120]
[354522298,1740553845696,-3232.04,0.00044109,120]
[354522299,1740553845708,-500.0,0.00044109,120]
[354522300,1740553845724,-500.0,0.00044109,120]
[354522301,1740553845733,-902.42,0.00044109,120]
[354522302,1740553845743,-2298.93,0.00044109,120]
[354522303,1740553845755,-866.02,0.00044109,120]
[354522304,1740553845766,-1182.51,0.00044109,120]
[354522305,1740553845776,-1199.45,0.00044109,120]
[354522306,1740553845786,-500.0,0.00044109,120]
[354522307,1740553845796,-500.0,0.00044109,120]
[354522308,1740553845805,-500.0,0.00044109,120]
[354522309,1740553845816,-843.19,0.00044109,120]
[354522310,1740553845826,-1868.17,0.00044109,120]
[354522311,1740553845836,-500.0,0.00044109,120]
[354522312,1740553845846,-1760.7,0.00044109,120]
[354522313,1740553845857,-543.62,0.00044109,120]
[354522314,1740553845867,-500.0,0.00044109,120]
[354522315,1740553845877,-500.0,0.00044109,120]
[354522316,1740553845887,-519.33145603,0.00044109,120]
[354522317,1740553845898,-608.02,0.00044109,120]
[354522318,1740553845908,-500.0,0.00044109,120]
[354522319,1740553845918,-536.12,0.00044109,120]
[354522320,1740553845928,-500.0,0.00044109,120]
[354522321,1740553845938,-500.0,0.00044109,120]
[354522322,1740553846023,-848.75,0.00044109,120]
[354522323,1740553846037,-981.98,0.00044109,120]
[354522324,1740553846047,-505.28113392,0.00044109,120]
[354522325,1740553846057,-1040.74,0.00044109,120]
[354522326,1740553846067,-500.0,0.00044109,120]
[354522327,1740553846077,-503.24813955,0.00044109,120]
[354522328,1740553846096,-1544.28,0.00044109,120]
[354522329,1740553846105,-1954.5,0.00044109,120]
[354522330,1740553846115,-503.84828695,0.00044109,120]
[354522331,1740553846125,-3123.13,0.00044109,120]
[354522332,1740553846135,-500.0,0.00044109,120]
[354522333,1740553846145,-639.83,0.00044109,120]
[354522334,1740553846154,-1105.48,0.00044109,120]
[354522335,1740553846164,-3256.02,0.00044109,120]
[354522336,1740553846174,-1436.88,0.00044109,120]
[354522337,1740553846185,-500.0,0.00044109,120]
[354522338,1740553846195,-500.0,0.00044109,120]
[354522339,1740553846205,-500.0,0.00044109,120]
[354522340,1740553846214,-1186.59,0.00044109,120]
[354522341,1740553846224,-871.92,0.00044109,120]
[354522342,1740553846234,-858.84,0.00044109,120]
[354522343,1740553846243,-500.0,0.00044109,120]
[354522344,1740553846253,-1721.96,0.00044109,120]
[354522345,1740553846263,-1992.55,0.00044109,120]
[354522346,1740553846272,-2172.48,0.00044109,120]
[354522347,1740553846282,-408.76743841,0.00044109,120]
[354522348,1740553846292,-500.0,0.00044109,120]
[354522349,1740553846301,-1614.2,0.00044109,120]
[354522350,1740553846311,-500.0,0.00044109,120]
[354522351,1740553846321,-1785.41,0.00044109,120]
[354522352,1740553846330,-702.22,0.00044109,120]
[354522353,1740553846340,-500.0,0.00044109,120]
[354522354,1740553846350,-1557.93,0.00044109,60]
[354522355,1740553846360,-500.0,0.00044109,120]
[354522356,1740553846369,-706.15,0.00044109,120]
[354522357,1740553846379,-531.49,0.00044109,120]
[354522358,1740553846389,-500.0,0.00044109,120]
[354522360,1740553846398,-500.0,0.00044109,120]
[354522362,1740553846407,-845.07,0.00044109,120]
[354522364,1740553846416,-500.0,0.00044109,120]
[354522366,1740553846425,-2865.7,0.00044109,120]
[354522368,1740553846435,-500.0,0.00044109,120]
[354522370,1740553846444,-500.0,0.00044109,120]
[354522372,1740553846453,-2414.75,0.00044109,120]
[354522374,1740553846462,-1670.22,0.00044109,120]
[354522376,1740553846473,-2880.33,0.00044109,120]
[354522378,1740553846482,-500.0,0.00044109,120]
[354522380,1740553846491,-500.0,0.00044109,120]
[354522382,1740553846500,-927.22,0.00044109,120]
[354522384,1740553846509,-857.92,0.00044109,120]
[354522386,1740553846519,-538.30061292,0.00044109,120]
[354522388,1740553846529,-1301.9,0.00044109,120]
[354522390,1740553846539,-1992.93,0.00044109,120]
[354522392,1740553846548,-500.0,0.00044109,40]
[354522394,1740553846557,-3010.73,0.00044109,120]
[354522396,1740553846567,-2011.88,0.00044109,120]
[354522398,1740553846576,-500.0,0.00044109,120]
[354522400,1740553846586,-1682.68,0.00044109,120]
[354522402,1740553846596,-2000.0,0.00044109,120]
[354522404,1740553846605,-500.0,0.00044109,120]
[354522406,1740553846615,-500.0,0.00044109,120]
[354522408,1740553846624,-2214.74,0.00044109,120]
[354522410,1740553846633,-2722.88,0.00044109,120]
[354522412,1740553846643,-1377.45,0.00044109,120]
[354522414,1740553846652,-500.0,0.00044109,120]
[354522416,1740553846662,-1073.62,0.00044109,120]
[354522418,1740553846671,-500.0,0.00044109,120]
[354522420,1740553846681,-500.0,0.00044109,120]
[354522422,1740553846691,-504.10683444,0.00044109,120]
[354522424,1740553846701,-500.0,0.00044109,120]
[354522426,1740553846713,-1261.73,0.00044109,120]
[354522428,1740553846724,-2168.58,0.00044109,120]
[354522430,1740553846734,-500.0,0.00044109,120]
[354522432,1740553846743,-516.09921063,0.00044109,120]
[354522434,1740553846752,-500.0,0.00044109,120]
[354522436,1740553846763,-3092.63,0.00044109,120]
[354522438,1740553846773,-966.17,0.00044109,120]
[354522440,1740553846783,-500.0,0.00044109,120]
[354522442,1740553846794,-500.0,0.00044109,120]
[354522444,1740553846804,-500.0,0.00044109,120]
[354522446,1740553846813,-2812.27,0.00044109,120]
[354522448,1740553846822,-500.0,0.00044109,120]
[354522450,1740553846832,-500.0,0.00044109,120]
[354522452,1740553846841,-500.0,0.00044109,120]
[354522454,1740553846854,-500.0,0.00044109,120]
[354522457,1740553846864,-500.0,0.00044109,120]
[354522459,1740553846873,-2106.2,0.00044109,120]
[354522461,1740553846883,-500.0,0.00044109,120]
[354522463,1740553846893,-500.0,0.00044109,120]
[354522465,1740553846903,-2000.0,0.00044109,120]
[354522467,1740553846913,-672.37,0.00044109,120]
[354522469,1740553846923,-1143.76,0.00044109,120]
[354522471,1740553846934,-2726.03,0.00044109,120]
[354522473,1740553846944,-1636.25,0.00044109,120]
[354522475,1740553846953,-637.47,0.00044109,120]
[354522477,1740553846962,-2165.97,0.00044109,120]
[354522479,1740553846972,-2361.76,0.00044109,120]
[354522480,1740553846981,-574.14638882,0.00044109,120]
[354522481,1740553846991,-738.98,0.00044109,120]
[354522482,1740553847231,-1591.47,0.00044109,120]
[354522483,1740553847293,-495.35267917,0.00044109,120]
[354522484,1740553847303,-1152.15,0.00044109,120]
[354522485,1740553847312,-1164.22,0.00044109,120]
[354522486,1740553847322,-903.65,0.00044109,120]
[354522487,1740553847331,-1901.7,0.00044109,120]
[354522488,1740553847341,-500.0,0.00044109,120]
[354522489,1740553847350,-629.79,0.00044109,120]
[354522490,1740553847359,-2729.0,0.00044109,120]
[354522491,1740553847368,-501.65770037,0.00044109,120]
[354522492,1740553847378,-898.66,0.00044109,120]
[354522493,1740553847387,-527.34,0.00044109,120]
[354522494,1740553847397,-500.0,0.00044109,120]
[354522495,1740553847406,-500.0,0.00044109,120]
[354522496,1740553847415,-1216.82,0.00044109,120]
[354522497,1740553847425,-2137.74,0.00044109,120]
[354522498,1740553847434,-1361.45,0.00044109,120]
[354522499,1740553847444,-500.0,0.00044109,120]
[354522500,1740553847452,-4423.89,0.00044109,2]
[354522501,1740553847462,-500.0,0.00044109,120]
[354522502,1740553847471,-3159.29,0.00044109,120]
[354522503,1740553847480,-1208.43,0.00044109,120]
[354522504,1740553847490,-961.38,0.00044109,120]
[354522505,1740553847499,-1191.85,0.00044109,120]
[354522506,1740553847508,-500.0,0.00044109,120]
[354522507,1740553847518,-500.0,0.00044109,120]
[354522508,1740553847527,-1755.99,0.00044109,120]
[354522509,1740553847536,-3077.97,0.00044109,120]
[354522510,1740553847545,-4730.22,0.00044109,120]
[354522511,1740553847555,-1196.62,0.00044109,120]
[354522512,1740553847565,-1209.44,0.00044109,120]
[354522513,1740553847574,-569.89,0.00044109,120]
[354522514,1740553847584,-4110.25,0.00044109,120]
[354522515,1740553847593,-1301.02,0.00044109,120]
[354522516,1740553847603,-530.95718056,0.00044109,120]
[354522517,1740553847612,-500.0,0.00044109,120]
[354522518,1740553847622,-500.0,0.00044109,120]
[354522519,1740553847631,-500.0,0.00044109,120]
[354522520,1740553847640,-1932.8,0.00044109,120]
[354522521,1740553847650,-9442.74,0.00044109,120]
[354522522,1740553847660,-8772.88,0.00044109,120]
[354522523,1740553847669,-4215.05,0.00044109,120]
[354522524,1740553847679,-940.59,0.00044109,120]
[354522525,1740553847688,-576.56,0.00044109,120]
[354522526,1740553847698,-1892.33,0.00044109,120]
[354522527,1740553847709,-5483.52,0.00044109,120]
[354522528,1740553847720,-666.55,0.00044109,120]
[354522529,1740553847729,-1017.91,0.00044109,120]
[354522530,1740553847739,-4948.29,0.00044109,120]
[354522531,1740553847748,-4922.27,0.00044109,120]
[354522532,1740553847759,-3467.32,0.00044109,120]
[354522533,1740553847768,-5044.97,0.00044109,120]
[354522534,1740553847777,-643.71,0.00044109,120]
[354522535,1740553847788,-500.0,0.00044109,120]
[354522536,1740553847798,-1440.71,0.00044109,120]
[354522537,1740553847808,-500.0,0.00044109,120]
[354522538,1740553847817,-1895.94,0.00044109,120]
[354522539,1740553847826,-500.0,0.00044109,120]
[354522540,1740553847836,-3882.18,0.00044109,120]
[354522541,1740553847845,-500.0,0.00044109,120]
[354522542,1740553847854,-3564.63,0.00044109,120]
[354522543,1740553847864,-500.0,0.00044109,120]
[354522544,1740553847873,-2501.83093211,0.00044109,120]
[354522545,1740553847944,-200.65906789,0.00044109,120]
[354522546,1740553847953,-3731.38,0.00044109,120]
[354522547,1740553847962,-743.37044011,0.00044109,120]
[354522548,1740553847978,-13014.84955989,0.00044109,120]
[354522549,1740553847988,-500.0,0.00044109,120]
[354522550,1740553847997,-500.0,0.00044109,120]
[354522551,1740553848007,-1599.71,0.00044109,120]
[354522552,1740553848016,-500.0,0.00044109,120]
[354522553,1740553848025,-505.69378513,0.00044109,120]
[354522554,1740553848035,-500.0,0.00044109,120]
[354522555,1740553848044,-5467.42,0.00044109,120]
[354522556,1740553848053,-5666.43,0.00044109,120]
[354522557,1740553848062,-500.0,0.00044109,120]
[354522558,1740553848071,-500.0,0.00044109,120]
[354522559,1740553848081,-5852.59,0.00044109,120]
[354522560,1740553848090,-1456.95,0.00044109,120]
[354522561,1740553848100,-542.92918196,0.00044109,120]
[354522562,1740553848109,-500.0,0.00044109,120]
[354522563,1740553848118,-500.0,0.00044109,120]
[354522564,1740553848127,-5614.1,0.00044109,120]
[354522565,1740553848136,-6528.27,0.00044109,120]
[354522566,1740553848145,-500.0,0.00044109,120]
[354522567,1740553848155,-4842.73,0.00044109,120]
[354522568,1740553848165,-2903.63,0.00044109,120]
[354522569,1740553848174,-1616.54,0.00044109,120]
[354522570,1740553848184,-4195.02,0.00044109,120]
[354522571,1740553848193,-500.0,0.00044109,120]
[354522572,1740553848203,-8193.91,0.00044109,120]
[354522573,1740553848212,-502.93070719,0.00044109,120]
[354522574,1740553848222,-500.0,0.00044109,120]
[354522575,1740553848232,-502.13245355,0.00044109,120]
[354522576,1740553848242,-868.77,0.00044109,120]
[354522577,1740553848251,-2450.11,0.00044109,120]
[354522578,1740553848261,-2819.97,0.00044109,120]
[354522579,1740553848270,-10823.83,0.00044109,100]
[354522580,1740553848280,-2219.85,0.00044109,120]
[354522581,1740553848289,-501.62051637,0.00044109,120]
[354522582,1740553848299,-8345.21,0.00044109,120]
[354522583,1740553848308,-500.0,0.00044109,120]
[354522584,1740553848318,-4784.91,0.00044109,120]
[354522585,1740553848327,-500.0,0.00044109,120]
[354522586,1740553848337,-2954.92,0.00044109,120]
[354522587,1740553848347,-940.0,0.00044109,120]
[354522588,1740553848357,-597.6,0.00044109,120]
[354522589,1740553848366,-808.48,0.00044109,120]
[354522590,1740553848375,-505.58297588,0.00044109,120]
[354522591,1740553848385,-500.52897092,0.00044109,120]
[354522592,1740553848394,-7691.3,0.00044109,120]
[354522593,1740553848404,-1840.51,0.00044109,120]
[354522594,1740553848415,-759.76,0.00044109,120]
[354522595,1740553848425,-1235.67,0.00044109,7]
[354522596,1740553848436,-2798.12,0.00044109,120]
[354522597,1740553848445,-1229.54,0.00044109,120]
[354522598,1740553848454,-3301.66,0.00044109,120]
[354522599,1740553848464,-2498.03,0.00044109,120]
[354522600,1740553848474,-500.0,0.00044109,120]
[354522601,1740553848483,-501.71880946,0.00044109,120]
[354522602,1740553848493,-5594.28,0.00044109,120]
[354522603,1740553848502,-1099.2,0.00044109,120]
[354522604,1740553848512,-2905.57,0.00044109,120]
[354522605,1740553848521,-500.0,0.00044109,120]
[354522606,1740553848531,-7243.65,0.00044109,120]
[354522607,1740553848540,-4794.25,0.00044109,120]
[354522608,1740553848549,-957.65,0.00044109,120]
[354522609,1740553848560,-1470.37,0.00044109,120]
[354522610,1740553848569,-916.94,0.00044109,120]
[354522611,1740553848578,-322.65295644,0.00044109,120]
[354522612,1740553848588,-500.0,0.00044109,120]
[354522613,1740553848597,-7700.26,0.00044109,120]
[354522614,1740553848607,-3433.57,0.00044109,120]
[354522615,1740553848616,-574.14,0.00044109,120]
[354522616,1740553848626,-5802.58,0.00044109,120]
[354522617,1740553848635,-634.22596798,0.00044109,120]
[354522618,1740553848644,-1082.67,0.00044109,120]
[354522619,1740553848654,-500.0,0.00044109,120]
[354522620,1740553848663,-500.0,0.00044109,120]
[354522621,1740553848672,-3200.65,0.00044109,120]
[354522622,1740553848682,-500.0,0.00044109,120]
[354522623,1740553848691,-3205.97,0.00044109,120]
[354522624,1740553848701,-500.0,0.00044109,120]
[354522625,1740553848712,-500.0,0.00044109,120]
[354522626,1740553848723,-4888.93,0.00044109,120]
[354522627,1740553848733,-1066.71,0.00044109,120]
[354522628,1740553848743,-2624.49,0.00044109,120]
[354522629,1740553848753,-513.73,0.00044109,120]
[354522630,1740553848763,-512.56204352,0.00044109,120]
[354522631,1740553848772,-500.0,0.00044109,120]
[354522632,1740553848782,-548.25,0.00044109,120]
[354522633,1740553848795,-2277.99,0.00044109,120]
[354522634,1740553848805,-2657.13,0.00044109,120]
[354522635,1740553848815,-500.0,0.00044109,7]
[354522636,1740553848825,-590.94,0.00044109,120]
[354522637,1740553848834,-5017.66,0.00044109,120]
[354522638,1740553848844,-4908.26,0.00044109,120]
[354522639,1740553848853,-500.0,0.00044109,120]
[354522640,1740553848863,-1934.26,0.00044109,120]
[354522641,1740553848873,-1693.93,0.00044109,120]
[354522642,1740553848883,-2155.42,0.00044109,120]
[354522643,1740553848892,-500.0,0.00044109,120]
[354522644,1740553848902,-7157.43,0.00044109,120]
[354522645,1740553848912,-2188.65,0.00044109,120]
[354522646,1740553848921,-1376.96,0.00044109,120]
[354522647,1740553848931,-501.60272657,0.00044109,120]
[354522648,1740553848941,-733.81,0.00044109,120]
[354522649,1740553848952,-1955.47,0.00044109,120]
[354522650,1740553848961,-500.0,0.00044109,120]
[354522651,1740553848971,-500.0,0.00044109,120]
[354522652,1740553848981,-4930.56,0.00044109,120]
[354522653,1740553848990,-1756.57,0.00044109,120]
[354522654,1740553849000,-500.0,0.00044109,120]
[354522655,1740553849009,-3731.88,0.00044109,120]
[354522656,1740553849019,-500.0,0.00044109,120]
[354522657,1740553849029,-856.98,0.00044109,120]
[354522658,1740553849040,-411.34715888,0.00044109,120]
[354522659,1740553849049,-1553.36,0.00044109,120]
[354522660,1740553849058,-942.5,0.00044109,120]
[354522661,1740553849068,-6905.16,0.00044109,120]
[354522662,1740553849077,-550.54,0.00044109,120]
[354522663,1740553849086,-500.0,0.00044109,120]
[354522664,1740553849096,-500.0,0.00044109,120]
[354522665,1740553849105,-5131.93,0.00044109,120]
[354522666,1740553849115,-5895.42,0.00044109,120]
[354522667,1740553849124,-500.0,0.00044109,120]
[354522668,1740553849133,-500.0,0.00044109,120]
[354522669,1740553849142,-506.94026256,0.00044109,120]
[354522670,1740553849152,-600.38,0.00044109,120]
[354522671,1740553849161,-568.29,0.00044109,120]
[354522672,1740553849171,-500.0,0.00044109,120]
[354522673,1740553849181,-1300.41,0.00044109,120]